bitfinex-derivatives/quotes_SOLF0:USTF0_20260306
["timestamp","ask_amount","ask_price","bid_price","bid_amount"]
[1772768586777,4.48965981,88.358,88.326,10.188]
[1772768587873,4.48965981,88.358,88.327,5.27593736]
[1772768588071,4.48965981,88.358,88.266,20.391]
[1772768588072,4.50109123,88.369,88.331,5.27593736]
[1772768589478,4.50109123,88.369,88.332,10.188]
[1772768590378,4.50109123,88.369,88.342,0.07168824]
[1772768590780,4.4836951,88.383,88.342,5.3476256]
[1772768591478,4.4836951,88.383,88.342,5.27593736]
[1772768593274,4.48138873,88.379,88.332,5.27593736]
[1772768593673,2.98524209,88.37,88.319,5.27593736]
[1772768593873,4.43136362,88.369,88.319,5.27593736]
[1772768594576,4.43136362,88.369,88.32,8.26117945]
[1772768594880,4.43136362,88.369,88.331,5.27593736]
[1772768595281,4.43136362,88.369,88.333,10.188]
[1772768596485,4.43136362,88.369,88.342,0.07167519]
[1772768604284,4.37651888,88.379,88.342,0.07167519]
[1772768607289,4.36983488,88.369,88.342,0.07167519]
[1772768607989,4.36983488,88.369,88.324,10.189]
[1772768609383,4.36983488,88.369,88.331,10.188]
[1772768611083,4.36983488,88.369,88.331,15.4708034]
[1772768611992,4.36983488,88.369,88.334,15.4708034]
[1772768612193,4.36983488,88.369,88.335,5.2828034]
[1772768612689,7.24642552,88.38,88.338,5.2828034]
[1772768614492,7.24642552,88.38,88.34,5.2828034]
[1772768614995,4.25939586,88.379,88.34,5.2828034]
[1772768615895,4.2593125,88.378,88.328,5.2828034]
[1772768616194,2.98524209,88.37,88.328,5.2828034]
[1772768616388,4.2593125,88.378,88.328,5.2828034]
[1772768617595,4.2593125,88.378,88.33,15.4708034]
[1772768617789,4.2593125,88.378,88.344,0.07186041]
[1772768619491,10.183,88.377,88.344,0.07186041]
[1772768619696,4.25932476,88.369,88.322,10.189]
[1772768619899,4.25932476,88.369,88.323,5.2828034]
[1772768620997,4.25535687,88.379,88.323,5.2828034]
[1772768621197,9.25373793,88.378,88.323,5.2828034]
[1772768621394,9.25373793,88.377,88.323,5.2828034]
[1772768621590,4.25535687,88.379,88.32,2.98524209]
[1772768621591,4.25535687,88.379,88.335,5.2828034]
[1772768621795,4.25535687,88.377,88.335,5.2828034]
[1772768622099,9.26155554,88.376,88.335,5.2828034]
[1772768622299,9.26239481,88.375,88.335,5.2828034]
[1772768622500,9.26239481,88.374,88.335,5.2828034]
[1772768622701,9.26239481,88.373,88.335,5.2828034]
[1772768622903,4.25535687,88.377,88.335,5.2828034]
[1772768623099,13.50622292,88.376,88.335,5.2828034]
[1772768623300,9.26210102,88.375,88.335,5.2828034]
[1772768623504,9.26210102,88.374,88.335,5.2828034]
[1772768623801,9.26210102,88.373,88.335,5.2828034]
[1772768624101,9.26210102,88.372,88.335,5.2828034]
[1772768624295,9.26210102,88.371,88.335,5.2828034]
[1772768624498,9.26210102,88.37,88.339,15.4698034]
[1772768624701,4.2441219,88.376,88.339,15.4698034]
[1772768624901,9.27293237,88.375,88.339,15.4698034]
[1772768625102,9.27293237,88.374,88.339,15.4698034]
[1772768625297,9.27293237,88.373,88.339,15.4698034]
[1772768625602,0.07154879,88.366,88.339,15.4698034]
[1772768625802,0.07154879,88.366,88.34,5.2828034]
[1772768626701,0.07154879,88.366,88.345,5.2828034]
[1772768627801,0.07154879,88.366,88.346,10.186]
[1772768636411,0.07154879,88.366,88.346,15.4688034]
[1772768644420,0.07154879,88.366,88.347,4.93545754]
[1772768645017,4.27408044,88.387,88.347,4.93545754]
[1772768645223,13.42541937,88.386,88.347,4.93545754]
[1772768645521,4.30018464,88.384,88.347,4.93545754]
[1772768645719,9.12523473,88.383,88.347,4.93545754]
[1772768645921,9.12523473,88.382,88.347,4.93545754]
[1772768646122,9.12523473,88.381,88.347,4.93545754]
[1772768646423,4.30018464,88.384,88.347,4.93545754]
[1772768646622,9.12603054,88.383,88.347,4.93545754]
[1772768646921,9.12603054,88.382,88.347,4.93545754]
[1772768647120,4.30018464,88.384,88.347,4.93545754]
[1772768647318,9.1058591,88.383,88.347,4.93545754]
[1772768647518,9.1058591,88.382,88.347,4.93545754]
[1772768647719,9.1054456,88.381,88.347,4.93545754]
[1772768647919,9.1054456,88.38,88.347,4.93545754]
[1772768648219,4.30018464,88.384,88.347,4.93545754]
[1772768648419,9.10486183,88.383,88.347,4.93545754]
[1772768648719,13.40928421,88.382,88.347,4.93545754]
[1772768648915,9.10486183,88.381,88.347,4.93545754]
[1772768649120,9.10486183,88.38,88.347,4.93545754]
[1772768649319,9.10486183,88.379,88.347,4.93545754]
[1772768649521,9.10486183,88.378,88.347,4.93545754]
[1772768649824,9.10486183,88.377,88.35,4.93545754]
[1772768650018,9.10486183,88.376,88.35,4.93545754]
[1772768650222,4.30442238,88.382,88.35,4.93545754]
[1772768650415,9.09701685,88.381,88.35,4.93545754]
[1772768650723,4.30822375,88.407,88.364,4.93545754]
[1772768651922,4.30861514,88.419,88.366,5.42362932]
[1772768652116,7.27524939,88.41,88.366,5.42362932]
[1772768652320,7.27524939,88.42,88.376,5.42362932]
[1772768652523,4.2951814,88.419,88.376,5.42362932]
[1772768652823,2.98006799,88.43,88.389,5.42362932]
[1772768653719,4.32234411,88.429,88.389,5.42362932]
[1772768655118,4.32234411,88.429,88.391,5.42362932]
[1772768655522,4.3217234,88.419,88.381,5.42362932]
[1772768655726,2.98006799,88.41,88.381,5.42362932]
[1772768656529,4.21656632,88.399,88.361,10.184]
[1772768656826,4.21656632,88.399,88.367,5.42362932]
[1772768659725,2.98006799,88.38,88.336,5.42362932]
[1772768659930,9.58346059,88.439,88.336,5.42362932]
[1772768659931,2.98006799,88.37,88.336,5.42362932]
[1772768661425,4.21454844,88.379,88.336,5.42362932]
[1772768664632,2.98006799,88.37,88.336,5.42362932]
[1772768666336,4.21454844,88.379,88.336,5.42362932]
[1772768670137,4.21454844,88.379,88.279,20.388]
[1772768670344,2.98006799,88.36,88.312,5.31702521]
[1772768671543,2.98006799,88.36,88.324,15.50602521]
[1772768671837,4.26958807,88.359,88.311,5.31702521]
[1772768672745,4.26958807,88.359,88.322,10.189]
[1772768672943,4.26958807,88.359,88.322,15.50602521]
[1772768673237,4.26958807,88.359,88.323,5.31702521]
[1772768680553,4.52593603,88.37,88.324,5.31702521]
[1772768681047,4.52579381,88.369,88.324,5.31702521]
[1772768681443,4.52579381,88.369,88.329,5.31702521]
[1772768682348,4.52579381,88.369,88.33,10.188]
[1772768682552,4.52579381,88.369,88.331,5.31702521]
[1772768683753,7.43590743,88.38,88.334,5.31702521]
[1772768684055,4.37871619,88.393,88.341,5.31702521]
[1772768685345,4.37871619,88.393,88.346,10.186]
[1772768685545,4.37871619,88.393,88.347,5.31702521]
[1772768685960,2.98006799,88.39,88.347,5.31702521]
[1772768686450,2.97923365,88.39,88.347,5.31702521]
[1772768686647,2.97923365,88.39,88.349,5.31702521]
[1772768687457,7.3434819,88.39,88.349,5.31702521]
[1772768689356,4.35012431,88.389,88.34,2.97923365]
[1772768689559,4.35012431,88.379,88.338,15.50402521]
[1772768691462,4.36198843,88.369,88.35,0.07153363]
[1772768692054,4.36198843,88.369,88.326,5.31702521]
[1772768695769,4.36198843,88.369,88.328,5.31702521]
[1772768697464,4.36198843,88.369,88.33,5.31702521]
[1772768698060,4.36191908,88.359,88.267,5.31702521]
[1772768698262,4.36191908,88.349,88.291,5.31702521]
[1772768698868,4.36192041,88.339,88.291,5.31702521]
[1772768700273,4.36192041,88.339,88.306,0.07163369]
[1772768701977,2.97923365,88.35,88.307,5.06245803]
[1772768702176,4.37168288,88.357,88.311,5.06245803]
[1772768702976,4.37149509,88.369,88.311,5.06245803]
[1772768703371,4.37149509,88.369,88.325,0.07137966]
[1772768704173,2.97923365,88.36,88.325,0.07137966]
[1772768706073,4.39737405,88.349,88.325,0.07137966]
[1772768708871,4.40538274,88.339,88.28,2.97923365]
[1772768709076,2.97923365,88.33,88.281,5.06245803]
[1772768709276,4.40524652,88.329,88.281,5.06245803]
[1772768710380,18.46345243,88.368,88.281,5.06245803]
[1772768710381,7.39663413,88.32,88.281,5.06245803]
[1772768710678,4.41740048,88.309,88.268,5.06245803]
[1772768713385,4.37161581,88.319,88.268,5.06245803]
[1772768713676,2.97923365,88.33,88.281,5.06245803]
[1772768713876,4.37161581,88.333,88.281,5.06245803]
[1772768714282,4.37161581,88.333,88.285,5.06245803]
[1772768714483,4.37161581,88.333,88.29,2.97923365]
[1772768714685,4.37237711,88.347,88.291,5.06245803]
[1772768715182,2.97923365,88.34,88.291,5.06245803]
[1772768716383,2.97923365,88.34,88.292,5.06245803]
[1772768717379,2.97923365,88.34,88.295,10.192]
[1772768717576,2.97923365,88.34,88.296,5.06245803]
[1772768719088,0.07141338,88.327,88.296,5.06245803]
[1772768719488,0.07141338,88.327,88.29,2.97923365]
[1772768719489,0.07141338,88.327,88.299,15.25445803]
[1772768720690,0.07141338,88.327,88.3,5.06245803]
[1772768720890,0.07141338,88.327,88.302,5.06245803]
[1772768723195,0.07141338,88.327,88.304,5.06245803]
[1772768724497,0.07141338,88.327,88.307,10.191]
[1772768724697,0.07141338,88.327,88.308,5.06245803]
[1772768724896,2.97923365,88.34,88.308,5.06245803]
[1772768725589,4.37237711,88.347,88.308,5.06245803]
[1772768730091,4.40138831,88.349,88.309,5.43772646]
[1772768730295,4.40138831,88.339,88.294,5.43772646]
[1772768730899,4.40135122,88.329,88.285,10.193]
[1772768731099,4.40135122,88.329,88.285,15.63072646]
[1772768731297,4.40135122,88.329,88.286,5.43772646]
[1772768734594,4.40135122,88.329,88.299,0.07164179]
[1772768735602,7.26121604,88.34,88.299,0.07164179]
[1772768735803,4.28198239,88.339,88.299,0.07164179]
[1772768741205,4.28198239,88.339,88.301,5.43772646]
[1772768743210,7.24741017,88.33,88.299,0.07164179]
[1772768743706,4.26817652,88.33,88.299,0.07164179]
[1772768744413,4.22505489,88.349,88.3,5.43772646]
[1772768745414,4.22505489,88.349,88.304,5.43772646]
[1772768746615,4.22505489,88.349,88.305,10.191]
[1772768747505,2.98240306,88.36,88.313,5.43772646]
[1772768747709,8.89591372,88.359,88.313,5.43772646]
[1772768747916,13.24041956,88.358,88.313,5.43772646]
[1772768748115,13.24026418,88.357,88.313,5.43772646]
[1772768748311,2.98240306,88.35,88.327,0.07161373]
[1772768748815,9.55598779,88.371,88.3,2.98240306]
[1772768748816,2.98240306,88.34,88.3,5.43772646]
[1772768749012,2.98240306,88.34,88.303,5.43772646]
[1772768749216,4.34418822,88.347,88.303,5.43772646]
[1772768750116,4.34392852,88.346,88.303,5.43772646]
[1772768750718,2.98240306,88.34,88.303,5.43772646]
[1772768751020,7.32633391,88.34,88.303,5.43772646]
[1772768751220,0.07212498,88.333,88.303,5.43772646]
[1772768753420,0.07212498,88.333,88.307,5.43772646]
[1772768754012,4.35890709,88.348,88.307,5.43772646]
[1772768754318,4.35890709,88.346,88.307,5.43772646]
[1772768756520,0.07222679,88.335,88.307,5.43772646]
[1772768760925,4.31743401,88.365,88.311,5.43605313]
[1772768761126,8.91589004,88.364,88.321,5.43605313]
[1772768761323,8.91639705,88.363,88.321,5.43605313]
[1772768761525,4.3896608,88.376,88.321,5.43605313]
[1772768761829,4.3896608,88.374,88.321,5.43605313]
[1772768762024,8.91644399,88.373,88.321,5.43605313]
[1772768762228,8.91644399,88.372,88.321,5.43605313]
[1772768762428,8.91644399,88.371,88.321,5.43605313]
[1772768762623,8.91644399,88.37,88.324,5.43605313]
[1772768762928,8.91644399,88.369,88.324,5.43605313]
[1772768763129,4.3896608,88.374,88.324,5.43605313]
[1772768763330,8.91421327,88.373,88.338,0.07193445]
[1772768763529,8.91421327,88.372,88.338,0.07193445]
[1772768763728,8.91421327,88.371,88.338,0.07193445]
[1772768763931,4.3896608,88.374,88.338,0.07193445]
[1772768764127,8.91572244,88.373,88.338,0.07193445]
[1772768764329,8.91572244,88.372,88.338,0.07193445]
[1772768764528,4.3896608,88.374,88.338,0.07193445]
[1772768764529,8.91271024,88.371,88.338,0.07193445]
[1772768764731,4.3896608,88.374,88.338,0.07193445]
[1772768764927,2.98240306,88.36,88.338,0.07193445]
[1772768765132,7.45955248,88.36,88.338,0.07193445]
[1772768767827,2.98240306,88.38,88.338,5.50798758]
[1772768768136,13.38294404,88.379,88.338,5.50798758]
[1772768768432,9.29567039,88.398,88.338,0.07193445]
[1772768768433,4.4736473,88.369,88.338,0.07193445]
[1772768768936,4.4736473,88.369,88.322,5.43605313]
[1772768770339,2.98240306,88.37,88.337,5.50815903]
[1772768770638,2.98240306,88.38,88.337,5.50815903]
[1772768771430,2.98240306,88.39,88.339,5.43605313]
[1772768771636,8.89621516,88.389,88.339,5.43605313]
[1772768771940,8.89621516,88.388,88.339,5.43605313]
[1772768772140,8.89621516,88.387,88.339,5.43605313]
[1772768772345,2.98240306,88.39,88.342,5.43605313]
[1772768773542,2.98240306,88.39,88.347,5.43605313]
[1772768773742,2.98240306,88.38,88.347,5.43605313]
[1772768775240,4.47102871,88.389,88.347,5.43605313]
[1772768775444,4.47107414,88.388,88.347,5.43605313]
[1772768777645,4.47107414,88.388,88.359,0.07221529]
[1772768781350,10.179,88.406,88.359,0.07221529]
[1772768781351,4.47155898,88.399,88.359,0.07221529]
[1772768782051,2.98240306,88.39,88.359,0.07221529]
[1772768782251,4.47155898,88.399,88.359,0.07221529]
[1772768782252,4.47559389,88.379,88.359,0.07221529]
[1772768782850,4.47559389,88.379,88.299,20.384]
[1772768782851,4.4033786,88.369,88.314,5.43605313]
[1772768783047,4.40347695,88.349,88.291,5.43605313]
[1772768783253,2.98240306,88.34,88.291,5.43605313]
[1772768783452,4.40347695,88.349,88.291,5.43605313]
[1772768783954,4.40347695,88.349,88.3,5.43605313]
[1772768784156,2.98240306,88.36,88.301,5.43605313]
[1772768784351,2.98240306,88.36,88.253,158.626]
[1772768784352,2.98240306,88.36,88.311,5.43605313]
[1772768784557,2.98240306,88.36,88.313,5.43605313]
[1772768784762,4.41409587,88.361,88.313,5.43605313]
[1772768785352,4.41409587,88.361,88.318,10.189]
[1772768785659,4.41409587,88.361,88.319,5.43605313]
[1772768786357,2.98240306,88.36,88.319,5.43605313]
[1772768787455,4.41484601,88.349,88.303,5.43605313]
[1772768789457,4.4193747,88.347,88.29,2.98240306]
[1772768789655,474.802,88.454,88.29,2.98240306]
[1772768789656,4.4193747,88.329,88.29,4.98318118]
[1772768789960,0.07154537,88.335,88.29,4.98318118]
[1772768790158,0.07154537,88.335,88.291,5.29494681]
[1772768791358,0.07154537,88.335,88.291,15.48794681]
[1772768791558,0.07154537,88.335,88.292,5.29494681]
[1772768800570,0.07154537,88.335,88.293,10.192]
[1772768800772,2.98240306,88.35,88.294,5.29494681]
[1772768801360,7.46760246,88.35,88.294,5.29494681]
[1772768801566,4.4851994,88.349,88.294,5.29494681]
[1772768802364,4.4851994,88.349,88.301,10.191]
[1772768802670,4.4851994,88.349,88.302,5.29494681]
[1772768803174,4.4851994,88.349,88.305,5.29494681]
[1772768803770,4.4851994,88.349,88.31,5.29494681]
[1772768804172,2.98240306,88.35,88.31,5.29494681]
[1772768804472,4.478558,88.369,88.328,5.29494681]
[1772768805069,2.98240306,88.36,88.328,5.29494681]
[1772768806067,2.98240306,88.37,88.331,5.29494681]
[1772768806373,2.98240306,88.38,88.331,5.29494681]
[1772768806575,2.98240306,88.37,88.331,5.29494681]
[1772768808374,2.98240306,88.38,88.336,5.29494681]
[1772768808570,2.98014458,88.38,88.336,5.29494681]
[1772768809474,2.98014458,88.38,88.339,5.29494681]
[1772768810574,2.98014458,88.37,88.339,5.29494681]
[1772768811279,2.98014458,88.38,88.342,5.29494681]
[1772768811673,2.98014458,88.39,88.342,5.29494681]
[1772768811977,2.98014458,88.39,88.34,2.98014458]
[1772768811978,2.98014458,88.39,88.345,5.29494681]
[1772768813083,2.98014458,88.4,88.345,5.29494681]
[1772768813577,2.98014458,88.4,88.354,5.29494681]
[1772768814177,4.489797,88.399,88.354,5.29494681]
[1772768815373,4.48980535,88.389,88.344,5.29494681]
[1772768816479,2.98014458,88.38,88.344,5.29494681]
[1772768817678,4.49597881,88.379,88.326,5.29494681]
[1772768818277,4.51778067,88.369,88.326,5.29494681]
[1772768818479,2.98014458,88.36,88.326,5.29494681]
[1772768819584,4.51778067,88.369,88.326,5.29494681]
[1772768820182,4.51778067,88.369,88.328,5.0045579]
[1772768820484,4.52842987,88.379,88.328,5.0045579]
[1772768821486,4.52842987,88.379,88.333,5.0045579]
[1772768822787,4.54101694,88.369,88.321,5.0045579]
[1772768823089,2.98014458,88.37,88.321,5.0045579]
[1772768824176,2.98014458,88.39,88.338,5.0045579]
[1772768824381,4.54039264,88.389,88.338,5.0045579]
[1772768824687,2.98014458,88.38,88.338,5.0045579]
[1772768825387,2.98014458,88.38,88.343,5.0045579]
[1772768827291,4.53325407,88.379,88.343,5.0045579]
[1772768827588,2.98014458,88.37,88.343,5.0045579]
[1772768828785,4.54154159,88.369,88.32,5.0045579]
[1772768828990,7.52168617,88.36,88.32,5.0045579]
[1772768829782,2.98014458,88.38,88.331,5.0045579]
[1772768830182,4.461797,88.389,88.334,5.0045579]
[1772768831492,4.461797,88.389,88.34,5.0045579]
[1772768833390,4.461797,88.389,88.33,2.98014458]
[1772768833391,4.461797,88.389,88.344,5.0045579]
[1772768834696,2.98014458,88.38,88.344,5.0045579]
[1772768835696,4.461797,88.389,88.346,5.0045579]
[1772768836494,4.461797,88.389,88.351,15.1905579]
[1772768837192,4.461797,88.389,88.341,10.187]
[1772768837388,4.461797,88.389,88.342,5.0045579]
[1772768837597,14.61395589,88.387,88.342,5.0045579]
[1772768838195,4.43327159,88.386,88.342,5.0045579]
[1772768841800,2.98014458,88.39,88.344,5.0045579]
[1772768842201,10.181,88.395,88.344,5.0045579]
[1772768843499,10.181,88.395,88.347,5.0045579]
[1772768844200,8.89378031,88.394,88.347,5.0045579]
[1772768844401,10.181,88.395,88.349,5.0045579]
[1772768844601,8.89378031,88.394,88.349,5.0045579]
[1772768844801,10.181,88.395,88.349,5.0045579]
[1772768844991,8.89377462,88.394,88.349,5.0045579]
[1772768845198,8.8981349,88.393,88.349,5.0045579]
[1772768845396,10.181,88.395,88.349,5.0045579]
[1772768846401,10.181,88.395,88.351,5.0045579]
[1772768847602,10.181,88.395,88.353,5.0045579]
[1772768848305,8.90501032,88.394,88.353,5.0045579]
[1772768848605,10.181,88.395,88.353,5.0045579]
[1772768848901,13.34994614,88.394,88.353,5.0045579]
[1772768849101,4.44493582,88.394,88.353,5.0045579]
[1772768849302,8.90840907,88.393,88.353,5.0045579]
[1772768849504,8.90840907,88.392,88.353,5.0045579]
[1772768849701,4.44493582,88.394,88.353,5.0045579]
[1772768850005,8.90817973,88.393,88.353,5.0045579]
[1772768850205,8.90817973,88.393,88.295,28.17004417]
[1772768850206,4.44331444,88.409,88.355,5.00038636]
[1772768851502,4.4434098,88.399,88.355,5.00038636]
[1772768852003,7.40768005,88.39,88.355,5.00038636]
[1772768852208,4.42753547,88.389,88.331,5.00038636]
[1772768853407,4.42753547,88.389,88.348,10.186]
[1772768855110,4.42753547,88.389,88.345,5.00038636]
[1772768855309,4.4055961,88.379,88.331,5.00038636]
[1772768856508,4.4055961,88.379,88.333,5.00038636]
[1772768857610,2.98014458,88.39,88.34,2.98014458]
[1772768857810,4.4057527,88.391,88.341,5.00038636]
[1772768858507,4.4057527,88.391,88.346,5.00038636]
[1772768859106,2.98014458,88.4,88.346,5.00038636]
[1772768859306,4.40603194,88.418,88.361,5.00038636]
[1772768860413,4.40603194,88.418,88.37,5.00038636]
[1772768861109,2.98014458,88.41,88.37,5.00038636]
[1772768862811,10.57533772,88.437,88.403,5.00038636]
[1772768863009,28.10140681,88.483,88.403,5.00038636]
[1772768863010,5.39842777,88.446,88.403,5.00038636]
[1772768863208,2.98014458,88.44,88.403,5.00038636]
[1772768863513,5.39842777,88.429,88.384,10.182]
[1772768865319,2.98014458,88.39,88.355,5.00038636]
[1772768865913,5.39842777,88.399,88.355,5.00038636]
[1772768866115,5.39842777,88.409,88.355,5.00038636]
[1772768867417,5.39842777,88.409,88.365,5.00038636]
[1772768868413,5.39842777,88.409,88.366,15.18438636]
[1772768869113,2.98014458,88.42,88.37,7.98053094]
[1772768869316,2.98014458,88.42,88.371,5.00038636]
[1772768869512,8.37857235,88.42,88.371,5.00038636]
[1772768869815,5.39842777,88.419,88.371,5.00038636]
[1772768870520,5.39842777,88.419,88.371,15.18338636]
[1772768870914,5.39842777,88.419,88.372,5.00038636]
[1772768871415,5.39842777,88.419,88.376,10.183]
[1772768871618,5.39842777,88.409,88.351,5.00038636]
[1772768872418,2.97764052,88.42,88.376,5.00038636]
[1772768872620,5.39842777,88.419,88.376,5.00038636]
[1772768873816,5.39842777,88.419,88.382,10.182]
[1772768874021,5.39842777,88.429,88.383,5.00038636]
[1772768875423,5.39842777,88.429,88.384,10.182]
[1772768877829,5.39842777,88.429,88.392,10.181]
[1772768880626,5.39842777,88.429,88.384,15.18238636]
[1772768881225,5.052967,88.419,88.376,10.183]
[1772768881424,5.052967,88.419,88.377,4.98202972]
[1772768881929,5.052967,88.419,88.38,4.98202972]
[1772768882431,8.03060752,88.43,88.38,4.98202972]
[1772768882724,8.03060752,88.43,88.38,7.95967024]
[1772768882927,8.03060752,88.43,88.381,4.98202972]
[1772768883425,8.03060752,88.43,88.383,10.182]
[1772768883630,8.03060752,88.43,88.384,4.98202972]
[1772768884432,5.052967,88.429,88.384,4.98202972]
[1772768884931,15.229967,88.429,88.384,4.98202972]
[1772768885134,5.052967,88.428,88.384,4.98202972]
[1772768885626,5.052967,88.428,88.375,10.183]
[1772768885827,5.052967,88.423,88.378,4.98202972]
[1772768888629,5.052967,88.423,88.381,4.98202972]
[1772768890537,5.052967,88.419,88.369,4.98202972]
[1772768891133,10.178,88.418,88.371,10.183]
[1772768891334,5.052967,88.418,88.372,4.98202972]
[1772768892437,5.052967,88.418,88.375,4.98202972]
[1772768895239,5.052967,88.418,88.377,10.183]
[1772768895541,5.052967,88.418,88.37,2.97764052]
[1772768895542,5.052967,88.418,88.378,4.98202972]
[1772768895837,5.052967,88.435,88.383,4.98202972]
[1772768896038,5.052967,88.434,88.383,4.98202972]
[1772768896638,2.97764052,88.43,88.383,4.98202972]
[1772768897038,5.052967,88.429,88.383,4.98202972]
[1772768901546,5.052967,88.429,88.385,4.98202972]
[1772768902233,5.052967,88.429,88.389,4.98202972]
[1772768902641,5.052967,88.442,88.391,4.98202972]
[1772768902840,5.052967,88.442,88.4,2.97764052]
[1772768903143,5.052967,88.442,88.401,4.98202972]
[1772768906138,5.052967,88.439,88.401,4.98202972]
[1772768906544,5.052967,88.439,88.391,10.181]
[1772768906746,5.052967,88.437,88.391,10.181]
[1772768907042,5.052967,88.435,88.391,10.181]
[1772768907242,5.052967,88.433,88.391,10.181]
[1772768907442,5.052967,88.431,88.391,10.181]
[1772768907839,10.176,88.437,88.391,10.181]
[1772768907840,5.052967,88.429,88.391,10.181]
[1772768908040,5.052967,88.429,88.383,10.182]
[1772768908240,5.052967,88.427,88.383,10.182]
[1772768910844,5.052967,88.427,88.388,10.181]
[1772768915548,5.052967,88.427,88.392,5.33621476]
[1772768916150,5.5051373,88.438,88.394,5.33621476]
[1772768916349,8.80099716,88.437,88.394,5.33621476]
[1772768916648,5.5051373,88.438,88.394,5.33621476]
[1772768916844,14.30609872,88.437,88.394,5.33621476]
[1772768917149,5.5051373,88.437,88.394,5.33621476]
[1772768917346,8.80196513,88.436,88.395,10.181]
[1772768917652,5.5051373,88.437,88.396,5.33621476]
[1772768917850,8.80196513,88.436,88.396,5.33621476]
[1772768918050,5.5051373,88.437,88.396,5.33621476]
[1772768918252,14.3067978,88.436,88.396,5.33621476]
[1772768918451,5.5051373,88.436,88.396,5.33621476]
[1772768920348,5.5051373,88.436,88.39,2.97764052]
[1772768920349,5.5051373,88.436,88.398,5.33621476]
[1772768920549,5.5051373,88.449,88.401,5.33621476]
[1772768920753,2.97764052,88.46,88.401,5.33621476]
[1772768920754,5.5051373,88.447,88.401,5.33621476]
[1772768921052,5.5051373,88.445,88.401,5.33621476]
[1772768921252,5.5051373,88.443,88.401,5.33621476]
[1772768922456,5.5051373,88.443,88.403,10.18]
[1772768923449,5.5051373,88.438,88.395,5.33621476]
[1772768924753,5.5051373,88.438,88.408,0.07125923]
[1772768925157,5.5051373,88.449,88.409,10.179]
[1772768925355,5.5051373,88.447,88.409,15.51521476]
[1772768926858,5.5051373,88.459,88.412,5.33621476]
[1772768927060,5.5051373,88.457,88.412,5.33621476]
[1772768927359,8.80713975,88.456,88.416,5.33621476]
[1772768927558,5.5051373,88.457,88.416,5.33621476]
[1772768928161,5.5051373,88.469,88.423,5.33621476]
[1772768928459,5.5051373,88.467,88.423,5.33621476]
[1772768928660,14.3080831,88.466,88.423,5.33621476]
[1772768928960,8.8029458,88.465,88.423,5.33621476]
[1772768929259,8.8029458,88.464,88.423,5.33621476]
[1772768929452,8.8029458,88.463,88.425,15.51321476]
[1772768929656,8.8029458,88.462,88.426,5.33621476]
[1772768929854,8.8029458,88.461,88.426,5.33621476]
[1772768930060,5.5051373,88.466,88.426,5.33621476]
[1772768930257,8.79890346,88.465,88.426,5.33621476]
[1772768930461,8.79890346,88.464,88.428,10.177]
[1772768930659,5.5051373,88.466,88.428,10.177]
[1772768930660,8.79890346,88.463,88.428,10.177]
[1772768930854,8.79890346,88.462,88.428,10.177]
[1772768931053,2.97764052,88.48,88.431,5.33621476]
[1772768931262,5.5051373,88.489,88.441,5.33621476]
[1772768931458,8.79443298,88.499,88.451,5.33621476]
[1772768931658,8.79443298,88.498,88.451,5.33621476]
[1772768931963,5.5051373,88.501,88.451,5.33621476]
[1772768932259,28.11744754,88.569,88.398,178.725]
[1772768932260,8.48277782,88.48,88.421,5.33621476]
[1772768932459,2.97410845,88.47,88.421,5.33621476]
[1772768932664,5.5051373,88.469,88.424,15.51321476]
[1772768932964,2.97410845,88.46,88.424,15.51321476]
[1772768933164,2.97410845,88.46,88.424,5.33621476]
[1772768933360,5.5051373,88.459,88.412,5.33621476]
[1772768933565,5.5051373,88.449,88.412,5.33621476]
[1772768933970,5.5051373,88.449,88.405,10.179]
[1772768934372,5.5051373,88.449,88.4,5.33621476]
[1772768935162,5.5051373,88.483,88.412,5.33621476]
[1772768935466,5.5051373,88.459,88.412,5.33621476]
[1772768938172,5.5051373,88.459,88.413,15.51421476]
[1772768938671,5.5051373,88.459,88.414,5.33621476]
[1772768939874,5.5051373,88.459,88.416,5.52978045]
[1772768940674,5.4723731,88.449,88.401,5.52978045]
[1772768942375,5.4723731,88.449,88.409,5.52978045]
[1772768943478,5.4723731,88.449,88.4,2.97410845]
[1772768943479,5.4723731,88.449,88.412,5.52978045]
[1772768949776,5.4723731,88.449,88.415,5.52978045]
[1772768950877,2.97410845,88.46,88.415,5.52978045]
[1772768951080,2.97410845,88.46,88.377,20.366]
[1772768951081,5.4723731,88.461,88.417,5.52978045]
[1772768952480,5.4723731,88.461,88.42,5.52978045]
[1772768956877,5.4723731,88.461,88.411,10.179]
[1772768957077,5.4723731,88.459,88.411,10.179]
[1772768957278,5.4723731,88.459,88.411,15.70878045]
[1772768957585,5.4723731,88.459,88.414,10.178]
[1772768957885,5.4723731,88.459,88.414,15.70778045]
[1772768958087,5.4723731,88.459,88.415,5.52978045]
[1772768958680,5.4723731,88.459,88.424,5.52978045]
[1772768960182,8.78033942,88.467,88.424,5.52978045]